[Event "9th HDBank Open 2019"]
[Site "Ho Chi Minh City"]
[Date "2019.03.09"]
[Round "4.14"]
[White "Predke, Alexandr"]
[Black "Vo, Thanh Ninh"]
[Result "1-0"]
[ECO "A05"]
[WhiteElo "2611"]
[BlackElo "2358"]
[Annotator "ChessBase"]
[PlyCount "157"]
[EventDate "2019.03.07"]
[EventType "swiss"]
[EventCountry "VIE"]
[SourceTitle "playchess.com"]
[Source "ChessBase"]
[SourceQuality "1"]
[TimeControl "5400+30"]

1. Nf3 {[%emt 0:02:00]} Nf6 {[%emt 0:00:28]} 2. g3 {[%emt 0:01:51]} g6 {[%emt 0:00:44]} 3. Bg2 {[%emt 0:00:06]} Bg7 {[%emt 0:00:13]} 4. O-O {[%emt 0:00:06]} O-O {[%emt 0:00:21]} 5. d4 {[%emt 0:00:27]} d6 {[%emt 0:02:17]} 6. b3 {[%emt 0:00:16]} e5 {[%emt 0:08:00]} 7. dxe5 {[%emt 0:00:18]} Ng4 {[%emt 0:00:19]} 8. Bg5 {[%emt 0:01:20]} Qd7 {[%emt 0:04:05]} 9. Nc3 {[%emt 0:04:42]} h6 {[%emt 0:02:52]} 10. Bd2 {[%emt 0:05:05]} Nxe5 {[%emt 0:00:44]} 11. Nxe5 {[%emt 0:15:22]} Bxe5 12. Qe1 {[%emt 0:07:23]} Bg7 {[%emt 0:02:29]} 13. Rd1 {[%emt 0:00:04]} Nc6 {[%emt 0:00:36]} 14. Nd5 {[%emt 0:02:55]} f5 {[%emt 0:06:01]} 15. Bc3 {[%emt 0:04:52]} Kh7 {[%emt 0:01:38]} 16. b4 {[%emt 0:07:54]} Ne5 {[%emt 0:01:47]} 17. b5 {[%emt 0:03:50]} c6 {[%emt 0:01:37]} 18. bxc6 {[%emt 0:16:29]} bxc6 {[%emt 0:00:11]} 19. Nb4 {[%emt 0:00:34]} Bb7 {[%emt 0:06:13]} 20. Nd3 {[%emt 0:00:08]} Nxd3 {[%emt 0:05:06]} 21. Rxd3 {[%emt 0:00:48]} Bf6 {[%emt 0:17:36]} 22. Bxf6 {[%emt 0:04:32]} Rxf6 {[%emt 0:00:06]} 23. Qa5 {[%emt 0:00:47]} c5 {[%emt 0:13:31]} 24. Qxc5 {[%emt 0:00:19]} Bxg2 {[%emt 0:00:04]} 25. Kxg2 {[%emt 0:00:03]} Qb7+ {[%emt 0:00:05]} 26. Qd5 {[%emt 0:00:15]} Qxd5+ {[%emt 0:00:05]} 27. Rxd5 {[%emt 0:00:03]} Rc8 {[%emt 0:00:04]} 28. Rc1 {[%emt 0:07:56]} Rc3 {[%emt 0:01:03]} 29. Rd3 {[%emt 0:01:08]} Rc6 {[%emt 0:00:08]} 30. Ra3 {[%emt 0:01:53]} Rf7 {[%emt 0:00:14]} 31. Kf3 {[%emt 0:02:26]} Rfc7 {[%emt 0:00:40]} 32. c3 {[%emt 0:02:25]} Kg7 {[%emt 0:01:19]} 33. Ke3 {[%emt 0:00:05]} Kf6 {[%emt 0:00:53]} 34. Kd3 {[%emt 0:00:21]} Rb6 {[%emt 0:00:29]} 35. Kc2 {[%emt 0:00:25]} Re7 {[%emt 0:01:47]} 36. e3 {[%emt 0:00:48]} Ke5 {[%emt 0:00:07]} 37. f3 {[%emt 0:01:57]} Kf6 {[%emt 0:00:36]} 38. Re1 {[%emt 0:00:14]} Rc6 {[%emt 0:00:42]} 39. Re2 {[%emt 0:00:39]} Rb6 {[%emt 0:00:43]} 40. Rb3 {[%emt 0:00:12]} Ra6 {[%emt 0:00:16]} 41. Kd3 {[%emt 0:00:15]} Ra5 {[%emt 0:00:13]} 42. Rb4 {[%emt 0:00:17]} Rc7 {[%emt 0:01:05]} 43. a4 {[%emt 0:01:04]} Rac5 {[%emt 0:03:33]} 44. Rc2 {[%emt 0:00:07]} Ke6 {[%emt 0:00:46]} 45. Rb5 {[%emt 0:00:48]} a6 {[%emt 0:03:18]} 46. Rb4 {[%emt 0:02:17]} Rd5+ {[%emt 0:00:26]} 47. Rd4 {[%emt 0:00:06]} Rb7 {[%emt 0:00:06]} 48. Rd2 {[%emt 0:01:41]} Rc5 {[%emt 0:02:37]} 49. Kc2 {[%emt 0:01:38]} Rb6 {[%emt 0:00:32]} 50. e4 {[%emt 0:00:32]} Rbc6 {[%emt 0:02:31]} 51. exf5+ {[%emt 0:01:15]} Rxf5 {[%emt 0:00:08]} 52. Re2+ {[%emt 0:00:19]} Kf6 {[%emt 0:00:58]} 53. Re3 {[%emt 0:00:13]} g5 {[%emt 0:04:38]} 54. h4 {[%emt 0:00:46]} Re5 {[%emt 0:01:24]} 55. Rxe5 {[%emt 0:00:34]} Kxe5 {[%emt 0:00:49]} 56. Re4+ {[%emt 0:00:19]} Kf6 {[%emt 0:00:44]} 57. Kd3 {[%emt 0:00:26]} d5 {[%emt 0:00:11]} 58. Rb4 {[%emt 0:00:09]} Ke5 {[%emt 0:01:23]} 59. hxg5 {[%emt 0:02:36]} hxg5 {[%emt 0:00:04]} 60. Rb8 {[%emt 0:00:13]} Rc4 {[%emt 0:01:25]} 61. Rb4 {[%emt 0:00:06]} Rc6 {[%emt 0:00:21]} 62. Rg4 {[%emt 0:00:23]} Kf5 {[%emt 0:00:10]} 63. c4 {[%emt 0:00:53]} Rc5 {[%emt 0:00:45]} 64. Rd4 {[%emt 0:00:49]} dxc4+ {[%emt 0:00:04]} 65. Rxc4 {[%emt 0:00:02]} Rd5+ {[%emt 0:00:22]} 66. Ke3 {[%emt 0:00:16]} Re5+ {[%emt 0:00:14]} 67. Kd4 {[%emt 0:00:14]} Re6 {[%emt 0:01:02]} 68. Rc5+ {[%emt 0:00:12]} Kg6 {[%emt 0:00:04]} 69. a5 {[%emt 0:00:47]} Rf6 {[%emt 0:00:26]} 70. Ke4 {[%emt 0:00:07]} Re6+ {[%emt 0:00:22]} 71. Re5 {[%emt 0:01:37]} Rc6 {[%emt 0:00:04]} 72. g4 {[%emt 0:01:15]} Rf6 {[%emt 0:01:41]} 73. Re7 {[%emt 0:00:13]} Rc6 {[%emt 0:00:43]} 74. Rb7 {[%emt 0:00:37]} Rc4+ {[%emt 0:00:09]} 75. Kd3 {[%emt 0:00:10]} Rf4 {[%emt 0:00:09]} 76. Rb6+ {[%emt 0:00:06]} Kf7 {[%emt 0:00:04]} 77. Ke3 {[%emt 0:00:05]} Rf6 {[%emt 0:00:04]} 78. Rxf6+ {[%emt 0:00:22]} Kxf6 {[%emt 0:00:04]} 79. Kd4 {[%emt 0:00:07]} 1-0

[Event "9th HDBank Open 2019"]
[Site "Ho Chi Minh City"]
[Date "2019.03.09"]
[Round "4.15"]
[White "Setyaki, Azarya Jodi"]
[Black "Wen, Yang"]
[Result "0-1"]
[ECO "B15"]
[WhiteElo "2378"]
[BlackElo "2599"]
[Annotator "ChessBase"]
[PlyCount "110"]
[EventDate "2019.03.07"]
[EventType "swiss"]
[EventCountry "VIE"]
[SourceTitle "playchess.com"]
[Source "ChessBase"]
[SourceQuality "1"]
[TimeControl "5400+30"]

1. e4 {[%emt 0:00:00]} c6 {[%emt 0:03:20]} 2. d4 {[%emt 0:00:00]} d5 {[%emt 0:00:07]} 3. Nd2 {[%emt 0:00:28]} dxe4 {[%emt 0:00:10]} 4. Nxe4 {[%emt 0:00:05]} Nf6 {[%emt 0:00:11]} 5. Nxf6+ {[%emt 0:00:06]} exf6 {[%emt 0:00:05]} 6. c3 {[%emt 0:00:14]} Bd6 {[%emt 0:00:06]} 7. Bd3 {[%emt 0:00:09]} O-O {[%emt 0:00:08]} 8. Qc2 {[%emt 0:00:11]} Re8+ {[%emt 0:00:06]} 9. Ne2 {[%emt 0:00:05]} h5 {[%emt 0:00:05]} 10. O-O {[%emt 0:06:02]} h4 {[%emt 0:00:30]} 11. h3 {[%emt 0:05:56]} Nd7 {[%emt 0:01:32]} 12. Bf4 {[%emt 0:04:05]} Nf8 {[%emt 0:00:40]} 13. Bxd6 {[%emt 0:04:12]} Qxd6 {[%emt 0:00:09]} 14. Rae1 {[%emt 0:04:27]} Bd7 {[%emt 0:03:19]} 15. Qd2 {[%emt 0:16:01]} Ne6 16. Qe3 {[%emt 0:16:44]} Nc5 {[%emt 0:22:21]} 17. Qf4 {[%emt 0:06:42]} Qxf4 {[%emt 0:07:53]} 18. Nxf4 {[%emt 0:00:20]} Nxd3 {[%emt 0:05:35]} 19. Nxd3 {[%emt 0:00:12]} Be6 {[%emt 0:01:13]} 20. a3 {[%emt 0:02:46]} Kf8 {[%emt 0:02:45]} 21. Nc1 {[%emt 0:05:11]} Red8 {[%emt 0:02:20]} 22. Rd1 {[%emt 0:05:19]} a5 {[%emt 0:00:52]} 23. Rfe1 {[%emt 0:00:36]} a4 {[%emt 0:03:11]} 24. Nd3 {[%emt 0:00:34]} b6 {[%emt 0:01:08]} 25. Nb4 {[%emt 0:07:09]} Bb3 {[%emt 0:06:53]} 26. Nxc6 {[%emt 0:01:23]} Rd6 {[%emt 0:00:53]} 27. d5 {[%emt 0:00:19]} Bxd1 {[%emt 0:02:19]} 28. Rxd1 {[%emt 0:00:01]} Re8 {[%emt 0:02:53]} 29. Kf1 {[%emt 0:00:17]} Re4 {[%emt 0:00:23]} 30. f3 {[%emt 0:00:23]} Rc4 {[%emt 0:00:10]} 31. Nb4 {[%emt 0:00:15]} Ke7 {[%emt 0:09:17]} 32. Kf2 {[%emt 0:02:12]} Kd7 {[%emt 0:00:47]} 33. Nc2 {[%emt 0:03:35]} Kc7 {[%emt 0:12:26]} 34. Ne3 {[%emt 0:00:31]} Rf4 {[%emt 0:00:24]} 35. g3 {[%emt 0:07:03]} hxg3+ {[%emt 0:00:07]} 36. Kxg3 {[%emt 0:00:01]} g5 {[%emt 0:00:05]} 37. Ng2 {[%emt 0:01:43]} Rf5 {[%emt 0:00:49]} 38. Ne3 {[%emt 0:00:11]} Re5 {[%emt 0:01:04]} 39. Kf2 {[%emt 0:00:47]} Rd8 {[%emt 0:01:58]} 40. Rd4 {[%emt 0:02:44]} b5 {[%emt 0:01:23]} 41. c4 {[%emt 0:00:58]} f5 {[%emt 0:07:01]} 42. f4 {[%emt 0:00:29]} gxf4 {[%emt 0:00:03]} 43. Rxf4 {[%emt 0:00:02]} Rde8 {[%emt 0:00:04]} 44. Nxf5 {[%emt 0:00:14]} Re4 {[%emt 0:00:37]} 45. Rf3 {[%emt 0:00:20]} Re2+ {[%emt 0:00:19]} 46. Kg3 {[%emt 0:00:04]} Rxb2 {[%emt 0:00:52]} 47. c5 {[%emt 0:01:32]} Rb3 {[%emt 0:01:48]} 48. Nd4 {[%emt 0:00:16]} Ree3 {[%emt 0:01:51]} 49. Nxb5+ {[%emt 0:00:19]} Kd8 {[%emt 0:00:29]} 50. Rxe3 {[%emt 0:00:45]} Rxe3+ {[%emt 0:00:01]} 51. Kf4 {[%emt 0:00:04]} Rb3 {[%emt 0:00:07]} 52. Na7 {[%emt 0:01:22]} Rxa3 {[%emt 0:01:11]} 53. c6 {[%emt 0:00:12]} Rxh3 {[%emt 0:00:41]} 54. d6 {[%emt 0:00:41]} Rc3 {[%emt 0:00:03]} 55. Nb5 Ke8 0-1

[Event "9th HDBank Open 2019"]
[Site "Ho Chi Minh City"]
[Date "2019.03.09"]
[Round "4.16"]
[White "Huang, Renjie"]
[Black "Nasanjargal, Urtnasan"]
[Result "1/2-1/2"]
[ECO "E97"]
[WhiteElo "2335"]
[BlackElo "2503"]
[Annotator "ChessBase"]
[PlyCount "124"]
[EventDate "2019.03.07"]
[EventType "swiss"]
[EventCountry "VIE"]
[SourceTitle "playchess.com"]
[Source "ChessBase"]
[SourceQuality "1"]
[TimeControl "5400+30"]

1. e4 {[%emt 0:00:00]} g6 {[%emt 0:00:30]} 2. d4 {[%emt 0:00:45]} Bg7 {[%emt 0:00:08]} 3. Nf3 {[%emt 0:00:22]} d6 {[%emt 0:00:10]} 4. c4 {[%emt 0:04:02]} Nf6 {[%emt 0:00:59]} 5. Nc3 {[%emt 0:00:02]} O-O {[%emt 0:00:11]} 6. Be2 {[%emt 0:00:21]} e5 {[%emt 0:00:54]} 7. O-O {[%emt 0:00:40]} Nc6 {[%emt 0:01:32]} 8. dxe5 {[%emt 0:01:57]} dxe5 {[%emt 0:00:08]} 9. Qxd8 {[%emt 0:00:10]} Rxd8 {[%emt 0:07:23]} 10. Bg5 {[%emt 0:00:07]} Rf8 {[%emt 0:02:15]} 11. h3 {[%emt 0:10:00]} Nd4 {[%emt 0:07:04]} 12. Nxd4 {[%emt 0:02:45]} exd4 {[%emt 0:00:07]} 13. Bxf6 {[%emt 0:00:08]} Bxf6 {[%emt 0:00:12]} 14. Nd5 {[%emt 0:00:14]} Bd8 {[%emt 0:00:31]} 15. Bg4 f5 {[%emt 0:25:39]} 16. exf5 {[%emt 0:04:41]} h5 {[%emt 0:00:18]} 17. Bf3 {[%emt 0:00:34]} c6 {[%emt 0:01:27]} 18. Nf4 {[%emt 0:05:44]} Bxf5 {[%emt 0:00:17]} 19. Rfe1 {[%emt 0:00:39]} Ba5 {[%emt 0:09:23]} 20. Re7 {[%emt 0:01:52]} Rae8 {[%emt 0:09:01]} 21. Rxe8 {[%emt 0:03:55]} Rxe8 {[%emt 0:00:06]} 22. Rd1 {[%emt 0:02:13]} Bc7 {[%emt 0:03:21]} 23. g4 {[%emt 0:16:41]} hxg4 {[%emt 0:06:12]} 24. hxg4 {[%emt 0:00:04]} Be4 {[%emt 0:00:26]} 25. Bxe4 {[%emt 0:02:08]} Rxe4 {[%emt 0:00:07]} 26. Nd3 {[%emt 0:00:26]} Rxg4+ {[%emt 0:00:04]} 27. Kf1 {[%emt 0:00:23]} Kf7 {[%emt 0:01:21]} 28. Ke2 {[%emt 0:00:25]} Rh4 {[%emt 0:02:44]} 29. Kf3 {[%emt 0:01:26]} b6 {[%emt 0:00:15]} 30. b4 {[%emt 0:00:51]} g5 {[%emt 0:06:29]} 31. Re1 {[%emt 0:05:02]} g4+ {[%emt 0:00:33]} 32. Ke4 {[%emt 0:00:52]} g3+ {[%emt 0:01:25]} 33. f4 {[%emt 0:00:06]} Rh2 {[%emt 0:02:03]} 34. Rg1 {[%emt 0:06:54]} Re2+ {[%emt 0:00:06]} 35. Kxd4 {[%emt 0:00:03]} g2 {[%emt 0:02:25]} 36. Ne1 {[%emt 0:06:48]} Bd6 {[%emt 0:03:13]} 37. Kd3 {[%emt 0:02:07]} Rxa2 {[%emt 0:00:37]} 38. Nc2 {[%emt 0:00:22]} Bf8 {[%emt 0:01:36]} 39. f5 {[%emt 0:04:25]} Rb2 {[%emt 0:00:07]} 40. Rxg2 {[%emt 0:00:52]} Bxb4 {[%emt 0:01:42]} 41. Rg6 {[%emt 0:01:25]} Rb3+ {[%emt 0:00:13]} 42. Ke4 {[%emt 0:04:41]} Bc5 {[%emt 0:02:00]} 43. Nd4 {[%emt 0:01:20]} Bxd4 {[%emt 0:00:36]} 44. Kxd4 {[%emt 0:00:01]} c5+ {[%emt 0:00:18]} 45. Ke5 {[%emt 0:00:40]} Re3+ {[%emt 0:00:09]} 46. Kd5 {[%emt 0:00:03]} Re8 {[%emt 0:02:21]} 47. Kc6 {[%emt 0:01:50]} Re4 {[%emt 0:02:34]} 48. Kb5 {[%emt 0:00:51]} Re1 {[%emt 0:01:33]} 49. Rh6 {[%emt 0:00:35]} Rb1+ {[%emt 0:00:46]} 50. Ka6 {[%emt 0:01:26]} Ra1+ {[%emt 0:00:08]} 51. Kb5 {[%emt 0:00:14]} Kg7 {[%emt 0:00:43]} 52. Rg6+ {[%emt 0:00:13]} Kf7 {[%emt 0:00:09]} 53. Rh6 {[%emt 0:00:01]} Ke7 {[%emt 0:00:37]} 54. Kc6 {[%emt 0:00:27]} Ra4 {[%emt 0:00:17]} 55. Kd5 {[%emt 0:00:11]} Kf7 {[%emt 0:01:24]} 56. Ke5 {[%emt 0:00:38]} Rxc4 {[%emt 0:00:39]} 57. Rh7+ {[%emt 0:00:01]} Kg8 {[%emt 0:00:06]} 58. Rxa7 {[%emt 0:00:04]} Rc1 {[%emt 0:00:35]} 59. Rb7 {[%emt 0:01:20]} Rb1 {[%emt 0:00:18]} 60. Kd5 {[%emt 0:00:21]} c4 {[%emt 0:00:54]} 61. Kxc4 {[%emt 0:00:06]} Rf1 {[%emt 0:00:02]} 62. Rxb6 {[%emt 0:00:27]} Rxf5 1/2-1/2

[Event "9th HDBank Open 2019"]
[Site "Ho Chi Minh City"]
[Date "2019.03.09"]
[Round "4.17"]
[White "Nguyen, Anh Dung"]
[Black "Raghunandan, Kaumandur Srihari"]
[Result "1-0"]
[ECO "E81"]
[WhiteElo "2458"]
[BlackElo "2352"]
[Annotator "ChessBase"]
[PlyCount "103"]
[EventDate "2019.03.07"]
[EventType "swiss"]
[EventCountry "VIE"]
[SourceTitle "playchess.com"]
[Source "ChessBase"]
[SourceQuality "1"]
[TimeControl "5400+30"]

1. d4 {[%emt 0:00:00]} Nf6 {[%emt 0:01:45]} 2. c4 {[%emt 0:00:14]} g6 {[%emt 0:00:10]} 3. Nc3 {[%emt 0:00:40]} Bg7 {[%emt 0:00:13]} 4. e4 {[%emt 0:00:22]} d6 {[%emt 0:00:10]} 5. f3 {[%emt 0:00:45]} O-O {[%emt 0:00:27]} 6. Be3 {[%emt 0:00:20]} c5 {[%emt 0:00:21]} 7. Nge2 {[%emt 0:03:01]} Nc6 {[%emt 0:00:14]} 8. Qd2 {[%emt 0:03:39]} Qa5 {[%emt 0:01:35]} 9. d5 {[%emt 0:03:10]} Ne5 {[%emt 0:00:47]} 10. Nc1 {[%emt 0:00:07]} e6 {[%emt 0:07:01]} 11. a4 {[%emt 0:12:35]} a6 {[%emt 0:08:02]} 12. Ra3 exd5 {[%emt 0:18:26]} 13. cxd5 {[%emt 0:04:06]} Qd8 {[%emt 0:06:58]} 14. Be2 {[%emt 0:01:37]} Ne8 {[%emt 0:00:05]} 15. O-O {[%emt 0:00:36]} f5 {[%emt 0:00:05]} 16. f4 {[%emt 0:05:29]} Nf7 {[%emt 0:07:51]} 17. Bf3 {[%emt 0:08:57]} Nf6 {[%emt 0:02:46]} 18. e5 {[%emt 0:08:45]} dxe5 {[%emt 0:00:13]} 19. Bxc5 {[%emt 0:00:22]} Re8 {[%emt 0:02:22]} 20. Rd1 {[%emt 0:00:12]} Bh6 {[%emt 0:20:19]} 21. d6 {[%emt 0:06:11]} Bxf4 {[%emt 0:01:14]} 22. Qf2 {[%emt 0:00:25]} e4 {[%emt 0:06:33]} 23. Be2 {[%emt 0:00:19]} Be5 {[%emt 0:00:24]} 24. Rb3 {[%emt 0:07:33]} f4 {[%emt 0:01:08]} 25. Nd5 {[%emt 0:01:21]} Nxd5 {[%emt 0:02:09]} 26. Rxd5 {[%emt 0:00:05]} Be6 {[%emt 0:00:58]} 27. Rxe5 {[%emt 0:00:55]} Nxe5 {[%emt 0:00:08]} 28. Rxb7 {[%emt 0:00:24]} f3 {[%emt 0:04:31]} 29. Bf1 {[%emt 0:01:27]} fxg2 {[%emt 0:01:26]} 30. Bxg2 {[%emt 0:00:20]} Rc8 {[%emt 0:02:51]} 31. Ne2 {[%emt 0:03:26]} Rf8 {[%emt 0:01:58]} 32. Qd4 {[%emt 0:01:30]} Qg5 {[%emt 0:00:42]} 33. Kh1 {[%emt 0:01:08]} Nd7 {[%emt 0:00:32]} 34. b4 {[%emt 0:01:19]} Rf7 {[%emt 0:01:35]} 35. Qxe4 {[%emt 0:03:59]} Re8 {[%emt 0:00:55]} 36. Be3 {[%emt 0:11:26]} Qe5 {[%emt 0:00:13]} 37. Qxe5 {[%emt 0:01:10]} Nxe5 {[%emt 0:00:03]} 38. Nf4 {[%emt 0:02:13]} Rxb7 {[%emt 0:01:03]} 39. Bxb7 {[%emt 0:00:08]} Nf7 {[%emt 0:00:42]} 40. Nxe6 {[%emt 0:05:23]} Rxe6 {[%emt 0:00:06]} 41. Bc5 {[%emt 0:00:28]} Re1+ {[%emt 0:00:17]} 42. Kg2 {[%emt 0:00:05]} Rd1 {[%emt 0:00:05]} 43. Bxa6 {[%emt 0:01:17]} Nxd6 {[%emt 0:00:02]} 44. a5 {[%emt 0:00:36]} Kf7 {[%emt 0:01:31]} 45. Be2 {[%emt 0:02:06]} Rd2 {[%emt 0:00:08]} 46. Kf3 {[%emt 0:00:12]} Ke6 {[%emt 0:00:40]} 47. a6 {[%emt 0:00:19]} Ra2 {[%emt 0:00:33]} 48. b5 {[%emt 0:00:46]} Kd5 {[%emt 0:00:48]} 49. Bf2 {[%emt 0:00:54]} Nc4 {[%emt 0:00:48]} 50. a7 {[%emt 0:00:49]} Nd6 {[%emt 0:00:33]} 51. Kg2 {[%emt 0:01:25]} Nc4 {[%emt 0:00:31]} 52. Bxc4+ {[%emt 0:00:09]} 1-0

[Event "9th HDBank Open 2019"]
[Site "Ho Chi Minh City"]
[Date "2019.03.09"]
[Round "4.18"]
[White "Xu, Minghui"]
[Black "Pascua, Haridas"]
[Result "1-0"]
[ECO "A40"]
[WhiteElo "2293"]
[BlackElo "2446"]
[Annotator "ChessBase"]
[PlyCount "59"]
[EventDate "2019.03.07"]
[EventType "swiss"]
[EventCountry "VIE"]
[SourceTitle "playchess.com"]
[Source "ChessBase"]
[SourceQuality "1"]
[TimeControl "5400+30"]

1. d4 Nf6 {[%emt 0:00:00]} 2. c4 {[%emt 0:02:23]} e6 {[%emt 0:00:16]} 3. g3 {[%emt 0:02:32]} Bb4+ {[%emt 0:03:54]} 4. Bd2 {[%emt 0:00:37]} Qe7 {[%emt 0:00:11]} 5. Bg2 {[%emt 0:00:15]} O-O {[%emt 0:00:25]} 6. Nc3 {[%emt 0:02:04]} d5 {[%emt 0:02:32]} 7. Nf3 {[%emt 0:09:56]} dxc4 {[%emt 0:02:19]} 8. O-O {[%emt 0:00:39]} c5 {[%emt 0:02:09]} 9. a3 {[%emt 0:10:46]} cxd4 {[%emt 0:01:46]} 10. axb4 {[%emt 0:01:58]} dxc3 {[%emt 0:00:06]} 11. Bxc3 {[%emt 0:00:20]} Rd8 12. Qc2 {[%emt 0:04:46]} Nd5 {[%emt 0:11:56]} 13. Rfd1 {[%emt 0:05:40]} Bd7 {[%emt 0:06:37]} 14. Qe4 {[%emt 0:04:58]} Nc6 {[%emt 0:06:26]} 15. b5 {[%emt 0:11:37]} Ncb4 {[%emt 0:00:49]} 16. Qxc4 {[%emt 0:01:02]} Nxc3 {[%emt 0:29:07]} 17. bxc3 {[%emt 0:01:02]} Nd5 {[%emt 0:01:32]} 18. Qb3 {[%emt 0:02:03]} Qc5 {[%emt 0:03:05]} 19. c4 {[%emt 0:03:06]} Nb6 {[%emt 0:02:05]} 20. Nd2 {[%emt 0:04:33]} Qc7 {[%emt 0:00:08]} 21. Rac1 {[%emt 0:01:30]} Be8 {[%emt 0:01:07]} 22. c5 {[%emt 0:02:00]} Nd5 {[%emt 0:00:45]} 23. Ne4 {[%emt 0:00:18]} b6 {[%emt 0:04:01]} 24. Nd6 {[%emt 0:10:24]} bxc5 {[%emt 0:01:53]} 25. Bxd5 {[%emt 0:00:15]} exd5 {[%emt 0:01:15]} 26. Qxd5 {[%emt 0:00:21]} Rac8 {[%emt 0:00:19]} 27. Qf5 {[%emt 0:02:00]} g6 {[%emt 0:03:23]} 28. Qf4 {[%emt 0:01:45]} Rb8 {[%emt 0:01:09]} 29. Rd5 {[%emt 0:00:28]} Bxb5 {[%emt 0:02:13]} 30. Nxb5 {[%emt 0:00:44]} 1-0

[Event "9th HDBank Open 2019"]
[Site "Ho Chi Minh City"]
[Date "2019.03.09"]
[Round "4.19"]
[White "Taher, Yoseph Theolifus"]
[Black "Saravana, Krishnan P."]
[Result "0-1"]
[ECO "A06"]
[WhiteElo "2446"]
[BlackElo "2352"]
[Annotator "ChessBase"]
[PlyCount "96"]
[EventDate "2019.03.07"]
[EventType "swiss"]
[EventCountry "VIE"]
[SourceTitle "playchess.com"]
[Source "ChessBase"]
[SourceQuality "1"]
[TimeControl "5400+30"]

1. Nf3 {[%emt 0:00:00]} d5 {[%emt 0:01:45]} 2. g3 {[%emt 0:00:00]} g6 {[%emt 0:01:15]} 3. Bg2 {[%emt 0:00:50]} Bg7 {[%emt 0:00:07]} 4. O-O {[%emt 0:00:45]} e5 {[%emt 0:00:11]} 5. d3 {[%emt 0:00:05]} Ne7 {[%emt 0:00:13]} 6. e4 {[%emt 0:00:46]} O-O {[%emt 0:01:22]} 7. Nc3 {[%emt 0:04:40]} d4 {[%emt 0:09:58]} 8. Ne2 {[%emt 0:00:08]} c5 {[%emt 0:00:29]} 9. Nd2 {[%emt 0:02:05]} Nbc6 {[%emt 0:02:09]} 10. f4 {[%emt 0:00:12]} f6 {[%emt 0:07:35]} 11. Nf3 {[%emt 0:07:19]} Be6 {[%emt 0:02:42]} 12. fxe5 {[%emt 0:00:52]} Nxe5 {[%emt 0:00:21]} 13. Nf4 {[%emt 0:00:43]} Bf7 {[%emt 0:03:24]} 14. Nxe5 {[%emt 0:01:45]} fxe5 {[%emt 0:02:01]} 15. Nh3 h6 {[%emt 0:11:11]} 16. Bd2 {[%emt 0:02:03]} Qd7 {[%emt 0:02:23]} 17. Nf2 {[%emt 0:00:07]} Be6 {[%emt 0:00:21]} 18. Qe2 {[%emt 0:01:28]} Kh7 {[%emt 0:02:35]} 19. h3 {[%emt 0:00:57]} Ng8 {[%emt 0:05:01]} 20. Kh2 {[%emt 0:01:32]} b5 {[%emt 0:03:33]} 21. Bf3 {[%emt 0:11:12]} Rf6 {[%emt 0:11:09]} 22. Bg4 {[%emt 0:00:35]} Raf8 {[%emt 0:00:12]} 23. Kg2 {[%emt 0:00:10]} Qf7 {[%emt 0:06:16]} 24. b3 {[%emt 0:01:34]} c4 {[%emt 0:03:35]} 25. Bxe6 {[%emt 0:03:51]} Qxe6 {[%emt 0:00:16]} 26. Bb4 {[%emt 0:00:25]} Rc8 {[%emt 0:01:11]} 27. Ng4 {[%emt 0:03:22]} Rf7 {[%emt 0:01:32]} 28. Rxf7 {[%emt 0:03:04]} Qxf7 {[%emt 0:00:04]} 29. Rf1 {[%emt 0:00:03]} Qc7 {[%emt 0:00:20]} 30. Rf2 {[%emt 0:10:04]} a5 {[%emt 0:03:22]} 31. Bd2 {[%emt 0:01:11]} cxb3 {[%emt 0:05:40]} 32. cxb3 {[%emt 0:01:17]} Qa7 {[%emt 0:00:07]} 33. Qe1 {[%emt 0:05:49]} b4 {[%emt 0:00:48]} 34. h4 {[%emt 0:03:20]} Rc7 {[%emt 0:00:37]} 35. Qe2 {[%emt 0:02:41]} Qa6 {[%emt 0:01:22]} 36. Qf3 {[%emt 0:01:55]} Qe6 {[%emt 0:01:00]} 37. Nh2 {[%emt 0:00:28]} Rc2 {[%emt 0:01:42]} 38. Be1 {[%emt 0:03:00]} Rc1 {[%emt 0:00:31]} 39. Re2 {[%emt 0:00:46]} Nf6 {[%emt 0:03:35]} 40. g4 {[%emt 0:01:09]} h5 {[%emt 0:00:34]} 41. gxh5 {[%emt 0:02:13]} Nxh5 {[%emt 0:00:08]} 42. Bd2 {[%emt 0:00:41]} Ra1 {[%emt 0:01:01]} 43. Bg5 {[%emt 0:01:44]} Bf6 {[%emt 0:00:24]} 44. Ng4 {[%emt 0:03:41]} Bxg5 {[%emt 0:00:46]} 45. hxg5 {[%emt 0:00:04]} Nf4+ {[%emt 0:00:46]} 46. Kh2 {[%emt 0:01:14]} Qc8 {[%emt 0:02:31]} 47. Kg3 {[%emt 0:10:40]} Rg1+ {[%emt 0:00:35]} 48. Kh4 {[%emt 0:00:06]} Rxg4+ {[%emt 0:00:19]} 0-1

[Event "9th HDBank Open 2019"]
[Site "Ho Chi Minh City"]
[Date "2019.03.09"]
[Round "4.20"]
[White "Bao, Khoa"]
[Black "Liu, Guanchu"]
[Result "1/2-1/2"]
[ECO "E44"]
[WhiteElo "2277"]
[BlackElo "2445"]
[Annotator "ChessBase"]
[PlyCount "84"]
[EventDate "2019.03.07"]
[EventType "swiss"]
[EventCountry "VIE"]
[SourceTitle "playchess.com"]
[Source "ChessBase"]
[SourceQuality "1"]
[TimeControl "5400+30"]

1. d4 e6 {[%emt 0:02:41]} 2. c4 {[%emt 0:00:13]} Nf6 {[%emt 0:00:15]} 3. Nc3 {[%emt 0:00:37]} Bb4 {[%emt 0:00:10]} 4. e3 {[%emt 0:00:45]} b6 {[%emt 0:00:44]} 5. Nge2 Bb7 {[%emt 0:13:21]} 6. a3 {[%emt 0:02:04]} Bd6 {[%emt 0:00:16]} 7. Qd3 {[%emt 0:03:31]} c5 {[%emt 0:03:00]} 8. d5 {[%emt 0:03:00]} exd5 {[%emt 0:02:56]} 9. cxd5 {[%emt 0:00:35]} Ba6 {[%emt 0:01:26]} 10. Qf5 {[%emt 0:03:24]} O-O {[%emt 0:02:33]} 11. g4 {[%emt 0:12:57]} g6 {[%emt 0:09:33]} 12. Qf3 {[%emt 0:07:23]} Be5 {[%emt 0:00:17]} 13. Nf4 {[%emt 0:03:19]} d6 {[%emt 0:01:03]} 14. Bd2 {[%emt 0:00:11]} Bxf1 {[%emt 0:03:55]} 15. Kxf1 {[%emt 0:03:43]} Nbd7 {[%emt 0:04:38]} 16. g5 {[%emt 0:01:09]} Ne8 {[%emt 0:01:16]} 17. h4 {[%emt 0:08:01]} Ng7 {[%emt 0:13:36]} 18. Qg4 {[%emt 0:03:07]} Qe8 {[%emt 0:05:31]} 19. Nfe2 {[%emt 0:02:25]} Nh5 {[%emt 0:01:36]} 20. Rh3 {[%emt 0:03:58]} Qc8 {[%emt 0:04:13]} 21. Kg2 {[%emt 0:01:23]} Bg7 {[%emt 0:00:09]} 22. f4 {[%emt 0:04:43]} f5 {[%emt 0:00:05]} 23. Qf3 {[%emt 0:02:17]} Qa6 {[%emt 0:01:56]} 24. Ng3 {[%emt 0:00:07]} Nxg3 {[%emt 0:00:07]} 25. Kxg3 {[%emt 0:01:40]} Qd3 {[%emt 0:01:25]} 26. Rh2 {[%emt 0:05:35]} Ne5 27. Qe2 {[%emt 0:00:07]} Qxe2 {[%emt 0:00:47]} 28. Rxe2 {[%emt 0:00:16]} Nc4 {[%emt 0:05:26]} 29. Be1 {[%emt 0:00:19]} Rfe8 {[%emt 0:01:39]} 30. Kf3 {[%emt 0:08:14]} b5 {[%emt 0:02:59]} 31. b3 {[%emt 0:00:21]} Nb6 {[%emt 0:00:08]} 32. Rd1 {[%emt 0:04:28]} a6 {[%emt 0:01:39]} 33. Nb1 {[%emt 0:03:20]} a5 {[%emt 0:00:14]} 34. Bc3 {[%emt 0:00:45]} b4 {[%emt 0:00:04]} 35. Bxg7 {[%emt 0:03:23]} Kxg7 {[%emt 0:05:44]} 36. Rd3 {[%emt 0:01:34]} Rac8 {[%emt 0:01:50]} 37. Nd2 {[%emt 0:02:34]} Re7 {[%emt 0:02:13]} 38. Re1 {[%emt 0:00:24]} bxa3 {[%emt 0:00:19]} 39. Ra1 a4 {[%emt 0:00:05]} 40. Rxa3 {[%emt 0:03:46]} axb3 {[%emt 0:00:30]} 41. Rdxb3 {[%emt 0:00:56]} Nxd5 42. Nc4 Nb4 1/2-1/2